bitfinex/quotes_SOLUSD_20240713
["timestamp","ask_amount","ask_price","bid_price","bid_amount"]
[1720881342855,11.49,140.01,139.96,45.0]
[1720881343150,11.49,139.99,139.97,1.42852937]
[1720881343346,11.49,139.99,139.96,45.0]
[1720881343644,11.49,139.99,139.95,46.42865814]
[1720881343823,11.49,139.99,139.96,1.42862794]
[1720881344024,11.49,140.0,139.96,1.42862794]
[1720881347427,11.49,140.01,139.96,12.91862794]
[1720881347627,11.49,140.01,139.97,45.0]
[1720881347929,11.49,140.0,139.97,45.0]
[1720881348131,11.49,140.0,139.96,45.0]
[1720881348523,1.42734208,140.06,139.96,45.0]
[1720881348753,6.42534208,140.06,139.97,12.91840362]
[1720881349055,11.49,140.03,139.98,56.49]
[1720881349227,11.49,140.03,139.99,1.42829997]
[1720881349625,1.42734208,140.06,139.99,1.42829997]
[1720881349837,11.49,140.06,140.01,11.49]
[1720881350036,1.42734208,140.1,140.02,46.4280372]
[1720881350236,11.49,140.07,140.02,46.4280372]
[1720881350436,11.49,140.06,140.02,46.4280372]
[1720881350648,11.49,140.05,140.02,46.4280372]
[1720881350857,11.49,140.05,140.02,45.0]
[1720881351061,11.49,140.05,140.01,46.42808323]
[1720881351261,11.49,140.05,140.02,1.42808334]
[1720881355062,11.49,140.05,140.01,45.0]
[1720881356064,4.9968,140.09,140.01,56.49]
[1720881356264,1.42734208,140.1,140.02,1.42805057]
[1720881356442,11.49,140.09,140.03,11.49]
[1720881356643,11.49,140.09,140.04,46.42786461]
[1720881356862,11.49,140.09,140.05,1.4278647]
[1720881357151,4.995,140.14,140.06,12.9178647]
[1720881357354,4.995,140.14,140.07,45.0]
[1720881357355,11.49,140.11,140.07,45.0]
[1720881357651,11.49,140.12,140.08,1.42750984]
[1720881358858,11.49,140.1,140.07,45.0]
[1720881359055,11.49,140.1,140.05,11.49]
[1720881359056,11.49,140.1,140.06,45.0]
[1720881359545,11.49,140.09,140.06,45.0]
[1720881359760,11.49,140.09,140.06,1.42761436]
[1720881360143,11.49,140.1,140.06,1.42761436]
[1720881360345,11.49,140.11,140.06,12.91761436]
[1720881360539,1.42734208,140.1,140.06,1.42761436]
[1720881360758,11.49,140.09,140.06,1.42761436]
[1720881361950,1.42734208,140.11,140.06,1.42761436]
[1720881362151,11.49,140.09,140.06,1.42761436]
[1720881362646,11.49,140.09,140.05,46.42772401]
[1720881363656,11.49,140.1,140.05,57.91772401]
[1720881364466,11.49,140.09,140.05,46.42772401]
[1720881364954,11.49,140.08,140.05,46.42772401]
[1720881365146,11.49,140.08,140.06,1.42773885]
[1720881366162,11.49,140.08,140.05,1.42774196]
[1720881368653,1.42734208,140.11,140.05,1.42774196]
[1720881368859,11.49,140.1,140.05,12.91774196]
[1720881369062,11.49,140.1,140.06,45.0]
[1720881369372,11.49,140.1,140.07,1.42756541]
[1720881369595,4.9953,140.13,140.08,1.42756751]
[1720881369875,11.49,140.11,140.08,1.42756751]
[1720881370745,11.49,140.11,140.06,56.49]
[1720881370950,11.49,140.1,140.06,45.0]
[1720881371151,11.49,140.1,140.07,1.42762]
[1720881373690,1.42734208,140.12,140.07,1.42762]
[1720881373860,11.49,140.11,140.07,1.42762]
[1720881374560,1.42734208,140.17,140.08,15.7941]
[1720881374883,11.49,140.17,140.12,11.49]
[1720881375061,11.49,140.17,140.13,46.42693854]
[1720881375577,11.49,140.15,140.09,1.42691074]
[1720881375785,11.49,140.15,140.1,11.49]
[1720881375956,11.49,140.15,140.11,46.42710701]
[1720881376882,11.49,140.14,140.11,46.42710701]
[1720881377182,11.49,140.15,140.12,45.0]
[1720881377382,11.49,140.15,140.11,1.42710701]
[1720881377889,11.49,140.15,140.1,45.0]
[1720881378063,11.49,140.15,140.11,1.42706156]
[1720881378260,4.9932,140.19,140.11,1.42706156]
[1720881378581,11.49,140.16,140.11,12.91706156]
[1720881378791,11.49,140.16,140.12,45.0]
[1720881378957,11.49,140.15,140.13,1.42705154]
[1720881379159,11.49,140.15,140.12,46.42705555]
[1720881379357,11.49,140.15,140.12,1.42705555]
[1720881380588,11.49,140.15,140.11,45.0]
[1720881380784,12.91734208,140.14,140.11,45.0]
[1720881380961,11.49,140.14,140.1,45.0]
[1720881381283,11.49,140.14,140.11,1.42718906]
[1720881382591,11.49,140.15,140.11,1.42718906]
[1720881383394,11.49,140.14,140.11,1.42718906]
[1720881385575,11.49,140.15,140.11,1.42718906]
[1720881386886,1.42734208,140.2,140.11,12.91718906]
[1720881387069,1.42734208,140.2,140.12,45.0]
[1720881387070,11.49,140.17,140.12,45.0]
[1720881387269,11.49,140.17,140.13,1.42704619]
[1720881387470,11.49,140.16,140.13,1.42704619]
[1720881388373,1.42734208,140.18,140.13,1.42704619]
[1720881388693,1.42734208,140.2,140.13,1.42704619]
[1720881388996,11.49,140.15,140.12,45.0]
[1720881389599,11.49,140.16,140.12,45.0]
[1720881390497,11.49,140.16,140.08,37.2841]
[1720881390498,12.91734208,140.15,140.09,1.4269646]
[1720881390662,11.49,140.14,140.09,31.49]
[1720881390865,11.49,140.13,140.09,20.0]
[1720881391293,11.49,140.13,140.09,21.42730013]
[1720881391767,11.49,140.13,140.1,45.0]
[1720881392179,11.49,140.13,140.09,45.0]
[1720881392693,11.49,140.13,140.09,46.42728708]
[1720881393588,11.49,140.13,140.09,45.0]
[1720881394108,11.49,140.13,140.1,1.42727617]
[1720881394292,11.49,140.14,140.1,1.42727617]
[1720881394504,11.49,140.15,140.1,12.91727617]
[1720881395174,11.49,140.15,140.1,1.42727617]
[1720881395383,11.49,140.14,140.1,1.42727617]
[1720881401497,12.91734208,140.13,140.09,45.0]
[1720881401706,12.91734208,140.13,140.08,15.7941]
[1720881401707,11.49,140.12,140.08,15.7941]
[1720881401879,11.49,140.11,140.08,15.7941]
[1720881402801,11.49,140.11,140.04,16.2097]
[1720881402986,11.49,140.1,140.05,12.91760581]
[1720881403383,11.49,140.1,140.05,1.42760581]
[1720881403578,11.49,140.1,140.05,11.49]
[1720881404092,11.49,140.1,140.06,65.0]
[1720881404291,11.49,140.1,140.07,1.42759506]
[1720881404603,1.42734208,140.14,140.07,1.42759506]
[1720881404794,11.49,140.11,140.07,1.42759506]
[1720881405292,1.42734208,140.14,140.07,12.91759506]
[1720881405479,11.49,140.12,140.08,45.0]
[1720881406077,11.49,140.12,140.08,46.42748789]
[1720881406578,11.49,140.12,140.08,45.0]
[1720881406977,11.49,140.11,140.08,45.0]
[1720881407197,11.49,140.11,140.07,45.0]
[1720881411422,11.49,140.11,140.08,1.42746181]
[1720881411709,11.49,140.11,140.07,45.0]
[1720881412313,11.49,140.11,140.07,46.42746167]
[1720881414098,11.49,140.11,140.07,45.0]
[1720881414399,11.49,140.1,140.07,45.0]
[1720881420603,11.49,140.1,140.06,20.0]
[1720881420604,11.49,140.1,140.05,11.49]
[1720881420896,11.49,140.09,140.06,45.0]
[1720881421097,11.49,140.09,140.05,45.0]
[1720881423108,11.49,140.08,140.05,45.0]
[1720881423627,11.49,140.09,140.05,45.0]
[1720881425128,11.49,140.09,140.05,46.42774135]
[1720881425426,11.49,140.1,140.05,46.42774135]
[1720881425919,11.49,140.1,140.05,57.91774135]
[1720881426328,1.42734208,140.11,140.05,46.42774135]
[1720881426521,11.49,140.11,140.06,11.49]
[1720881426826,11.49,140.11,140.07,46.42759497]
[1720881427004,11.49,140.11,140.08,1.42759482]
[1720881429106,11.49,140.11,140.07,46.42759418]
[1720881429605,11.49,140.1,140.07,1.42759418]
[1720881433731,1.42734208,140.12,140.07,1.42759418]
[1720881433923,11.49,140.11,140.07,1.42759418]
[1720881435412,1.42734208,140.1,140.06,1.42759552]
[1720881435613,11.49,140.09,140.04,27.6997]
[1720881436123,11.49,140.09,140.05,1.42777497]
[1720881436316,12.91734208,140.1,140.05,1.42777497]
[1720881436925,12.91734208,140.1,140.05,46.42777497]
[1720881439339,11.49,140.09,140.05,46.42777497]
[1720881439635,11.49,140.09,140.05,45.0]
[1720881441457,11.49,140.06,140.0,34.0521]
[1720881441653,11.49,140.05,140.0,34.0521]
[1720881441942,11.49,140.05,140.0,22.5621]
[1720881442133,11.49,140.05,140.0,34.0521]
[1720881443052,11.49,140.05,140.01,45.0]
[1720881443222,11.49,140.06,140.01,45.0]
[1720881443423,11.49,140.05,140.01,45.0]
[1720881444049,11.49,140.06,140.01,45.0]
[1720881444746,1.42734208,140.08,140.02,1.42810714]
[1720881444952,11.49,140.06,140.02,1.42810714]
[1720881445123,1.42734208,140.07,140.02,1.42810714]
[1720881445417,11.49,140.06,140.02,1.42810714]
[1720881445621,11.49,140.07,140.02,12.91810714]
[1720881446749,1.42734208,140.06,140.02,12.91810714]
[1720881446929,12.91734208,140.06,140.02,1.42810714]
[1720881449242,11.49,140.06,140.02,1.42810714]
[1720881450030,6.42414208,140.09,140.02,1.42810714]
[1720881450353,11.49,140.06,140.02,1.42810714]
[1720881450531,11.49,140.05,140.02,1.42810714]
[1720881454261,11.49,140.05,140.01,45.0]
[1720881454759,11.49,140.05,140.01,46.42817648]
[1720881456752,1.42734208,140.07,140.01,46.42817648]
[1720881457056,11.49,140.05,140.01,46.42817648]
[1720881458459,1.42734208,140.08,140.01,46.42817648]
[1720881458962,11.49,140.05,140.01,46.42817648]
[1720881461261,11.49,140.05,140.01,45.0]
[1720881461441,1.42734208,140.11,140.04,11.49]
[1720881461642,12.91734208,140.1,140.05,46.42776213]
[1720881464064,12.91734208,140.1,140.05,57.91776213]
[1720881468567,12.91734208,140.1,140.05,46.42776213]
[1720881468767,12.91734208,140.1,140.05,57.91776213]
[1720881468970,12.91734208,140.1,140.05,46.42776213]
[1720881469145,12.91734208,140.1,140.05,57.91776213]
[1720881469656,12.91734208,140.1,140.05,46.42776213]
[1720881470559,12.91734208,140.1,140.05,57.91776213]
[1720881472442,1.42734208,140.1,140.05,57.91776213]
[1720881472651,11.49,140.1,140.05,57.91776213]
[1720881474566,12.91734208,140.12,140.05,46.42776213]
[1720881474748,11.49,140.12,140.07,11.49]
[1720881475067,11.49,140.12,140.08,1.4275441]
[1720881475452,1.42734208,140.14,140.09,15.8584]
[1720881475653,11.49,140.13,140.1,46.4273186]
[1720881476364,11.49,140.13,140.1,45.0]
[1720881476549,11.49,140.13,140.09,15.8584]
[1720881477051,11.49,140.13,140.1,46.42732857]
[1720881477254,12.91734208,140.14,140.1,46.42732857]
[1720881477570,11.49,140.14,140.1,46.42732857]
[1720881477950,11.49,140.15,140.1,46.42732857]
[1720881478168,11.49,140.15,140.1,56.49]
[1720881479671,1.42734208,140.16,140.11,1.42716728]
[1720881479872,11.49,140.16,140.11,12.91716728]
[1720881480371,1.42734208,140.17,140.12,11.49]
[1720881480562,12.91734208,140.17,140.13,1.42699312]
[1720881480940,11.49,140.17,140.13,1.42699312]
[1720881482675,1.42734208,140.18,140.13,12.91699312]
[1720881482856,1.42734208,140.19,140.14,1.42692503]
[1720881483059,6.42064208,140.19,140.13,11.49]
[1720881483257,11.49,140.17,140.14,1.4269594]
[1720881483977,11.49,140.17,140.13,46.42696167]
[1720881484178,6.42064208,140.19,140.13,46.42696167]
[1720881484370,11.49,140.17,140.13,46.42696167]
[1720881484555,1.42734208,140.18,140.13,46.42696167]
[1720881484874,11.49,140.16,140.09,22.2306]
[1720881485047,1.42734208,140.15,140.1,76.49]
[1720881485371,12.91734208,140.15,140.1,76.49]
[1720881485559,11.49,140.15,140.1,76.49]
[1720881486573,12.91734208,140.14,140.09,22.2306]
[1720881486768,12.91734208,140.14,140.09,33.7206]
[1720881486974,1.42734208,140.14,140.09,33.7206]
[1720881487171,11.49,140.14,140.1,1.42725875]
[1720881487373,11.49,140.14,140.11,1.42722543]
[1720881487552,11.49,140.15,140.11,1.42722543]
[1720881487971,11.49,140.15,140.11,46.42722543]
[1720881488275,11.49,140.15,140.11,45.0]
[1720881489052,11.49,140.16,140.11,56.49]
[1720881490175,11.49,140.16,140.12,1.42707446]
[1720881490484,1.42734208,140.17,140.12,1.42707446]
[1720881490783,11.49,140.16,140.12,1.42707446]
[1720881491174,11.49,140.16,140.11,56.49]
[1720881492181,11.49,140.16,140.12,1.42707073]
[1720881492486,1.42734208,140.18,140.12,1.42707073]
[1720881492665,11.49,140.17,140.12,12.91707073]
[1720881492868,11.49,140.17,140.13,45.0]
[1720881493084,11.49,140.17,140.14,1.42694032]
[1720881493863,11.49,140.17,140.13,45.0]
[1720881494189,1.42734208,140.18,140.13,45.0]
[1720881494388,11.49,140.17,140.13,45.0]
[1720881494868,1.42734208,140.18,140.13,45.0]
[1720881495066,11.49,140.17,140.12,11.49]
[1720881495277,11.49,140.15,140.09,22.2306]
[1720881495483,1.42734208,140.14,140.1,1.42722842]
[1720881495870,11.49,140.15,140.1,1.42722842]
[1720881496080,12.91734208,140.15,140.1,1.42722842]
[1720881496260,1.42734208,140.14,140.1,1.42722842]
[1720881496764,1.42734208,140.14,140.1,46.42722842]
[1720881497779,1.42734208,140.14,140.1,45.0]
[1720881499181,1.42734208,140.14,140.05,22.92165692]
[1720881499182,11.49,140.12,140.05,22.92165692]
[1720881499358,11.49,140.11,140.06,12.91753815]
[1720881500375,11.49,140.12,140.07,11.49]
[1720881500570,11.49,140.12,140.08,46.42748389]
[1720881503307,1.42734208,140.15,140.08,57.91748389]
[1720881503476,1.42734208,140.15,140.09,12.9172817]
[1720881503681,1.42734208,140.15,140.1,45.0]
[1720881503989,11.49,140.14,140.1,45.0]
[1720881505703,1.42734208,140.13,140.1,45.0]
[1720881506002,12.91734208,140.13,140.1,45.0]
[1720881506205,11.49,140.13,140.09,45.0]
[1720881509378,1.42734208,140.13,140.09,1.42745233]
[1720881509605,12.91734208,140.13,140.09,1.42745233]
[1720881509793,11.49,140.13,140.09,1.42745233]
[1720881510195,11.49,140.13,140.08,56.49]
[1720881510509,11.49,140.13,140.08,45.0]
[1720881510694,12.91734208,140.13,140.08,45.0]
[1720881510893,12.91734208,140.13,140.09,1.42740911]
[1720881512505,11.49,140.13,140.09,1.42740911]
[1720881513003,1.42734208,140.14,140.09,1.42740911]
[1720881513306,4.9943,140.16,140.09,12.91740911]
[1720881513307,1.42734208,140.16,140.09,12.91740911]
[1720881513504,1.42734208,140.16,140.1,71.5874]
[1720881513689,11.49,140.16,140.11,12.91705996]
[1720881513889,11.49,140.16,140.12,45.0]
[1720881514210,6.42124208,140.17,140.12,45.0]
[1720881514211,11.49,140.15,140.12,45.0]
[1720881514501,11.49,140.15,140.11,46.42709102]
[1720881514709,11.49,140.14,140.11,46.42709102]
[1720881514886,11.49,140.14,140.11,45.0]
[1720881515089,6.42124208,140.17,140.11,45.0]
[1720881515397,11.49,140.15,140.12,1.42713065]
[1720881515606,12.91734208,140.14,140.1,15.0974]
[1720881515798,11.49,140.12,140.04,43.2243]
[1720881516013,11.49,140.12,140.07,11.49]
[1720881516213,11.49,140.12,140.08,1.4274167]
[1720881516610,6.42264208,140.14,140.08,12.9174167]
[1720881516611,11.49,140.13,140.08,12.9174167]
[1720881516916,11.49,140.13,140.09,1.42741706]
[1720881517718,11.49,140.13,140.09,46.42741706]
[1720881518407,1.42734208,140.17,140.09,57.91741706]
[1720881518614,11.49,140.15,140.09,73.01481706]
[1720881518819,11.49,140.14,140.09,73.01481706]
[1720881520325,1.42734208,140.16,140.09,73.01481706]
[1720881520622,11.49,140.15,140.1,11.49]
[1720881520795,11.49,140.15,140.11,45.0]
[1720881520993,11.49,140.15,140.12,1.42713236]
[1720881521200,11.49,140.14,140.12,1.42713236]
[1720881521508,11.49,140.14,140.1,1.42719634]
[1720881521717,11.49,140.14,140.11,1.42725366]
[1720881522017,11.49,140.14,140.1,45.0]
[1720881523199,11.49,140.14,140.11,1.42725582]
[1720881525408,11.49,140.15,140.11,1.42725582]
[1720881526000,1.42734208,140.17,140.11,1.42725582]
[1720881526222,11.49,140.16,140.11,1.42725582]
[1720881526406,11.49,140.16,140.1,56.49]
[1720881526723,11.49,140.15,140.1,56.49]
[1720881527094,11.49,140.15,140.1,45.0]
[1720881527297,6.42124208,140.17,140.1,56.49]
[1720881527514,11.49,140.15,140.1,56.49]
[1720881527925,11.49,140.15,140.11,1.42708261]
[1720881529225,11.49,140.15,140.1,56.49]
[1720881529537,6.42124208,140.17,140.11,1.4270917]
[1720881529702,11.49,140.16,140.11,1.4270917]
[1720881530319,16.4843,140.16,140.11,1.4270917]
[1720881530825,6.42134208,140.17,140.11,1.4270917]
[1720881531127,11.49,140.15,140.11,1.4270917]
[1720881532021,11.49,140.15,140.1,45.0]
[1720881532022,12.91734208,140.14,140.1,46.42709731]
[1720881532228,11.49,140.12,140.09,15.0974]
[1720881532435,11.49,140.1,140.06,6.5947]
[1720881532806,11.49,140.1,140.05,26.5495]
[1720881533007,11.49,140.1,140.06,1.42759139]
[1720881533907,11.49,140.09,140.06,21.42759139]
[1720881535027,4.9958,140.12,140.06,21.42759139]
[1720881535213,11.49,140.1,140.06,21.42759139]
[1720881535412,12.91734208,140.11,140.06,32.91759139]
[1720881536221,11.49,140.11,140.06,32.91759139]
[1720881538444,11.49,140.1,140.06,21.42759139]
[1720881538619,11.49,140.1,140.05,15.0595]
[1720881538813,11.49,140.1,140.06,45.0]
[1720881539227,11.49,140.1,140.07,1.42763645]
[1720881540833,11.49,140.09,140.07,1.42763645]
[1720881545324,11.49,140.09,140.06,45.0]
[1720881545640,11.49,140.09,140.07,1.42764706]
[1720881548426,11.49,140.1,140.07,1.42764706]
[1720881551524,4.9954,140.13,140.07,1.42764706]
[1720881551727,11.49,140.11,140.07,1.42764706]
[1720881554240,4.9957,140.12,140.07,1.42764706]
[1720881554459,11.49,140.11,140.07,1.42764706]
[1720881555460,16.486,140.11,140.07,1.42764706]
[1720881555743,11.49,140.1,140.06,45.0]
[1720881555916,11.49,140.09,140.06,46.42763398]
[1720881556432,11.49,140.1,140.06,46.42763398]
[1720881558647,11.49,140.11,140.06,57.91763398]
[1720881562264,11.49,140.1,140.06,46.42763398]
[1720881562448,11.49,140.1,140.06,45.0]
[1720881562845,11.49,140.1,140.07,1.42754249]
[1720881563050,4.9957,140.12,140.07,1.42754249]
[1720881563245,11.49,140.1,140.07,1.42754249]
[1720881563549,11.49,140.1,140.06,45.0]
[1720881567354,11.49,140.1,140.07,1.42754269]
[1720881568255,11.49,140.1,140.06,45.0]
[1720881568472,11.49,140.11,140.06,45.0]
[1720881570461,11.49,140.11,140.07,1.42745949]
[1720881573079,4.9955,140.13,140.07,1.42745949]
[1720881573261,6.42124208,140.17,140.07,8.09335949]
[1720881573470,11.49,140.15,140.1,11.49]
[1720881573663,11.49,140.15,140.11,1.42710072]
[1720881573974,11.49,140.14,140.11,46.42710072]
[1720881574483,11.49,140.14,140.11,1.42710072]
[1720881574663,11.49,140.14,140.1,46.42712365]
[1720881576261,4.9943,140.16,140.1,46.42712365]
[1720881576478,11.49,140.14,140.1,46.42712365]
[1720881578479,4.9943,140.16,140.1,46.42712365]
[1720881578783,11.49,140.15,140.1,57.91712365]
[1720881579076,11.49,140.16,140.11,11.49]
[1720881579282,11.49,140.15,140.12,46.42699796]
[1720881579578,11.49,140.15,140.12,1.42699796]
[1720881579807,11.49,140.16,140.12,1.42699796]
[1720881580084,6.42064208,140.19,140.13,1.42704289]
[1720881580283,1.42734208,140.19,140.12,45.0]
[1720881580456,11.49,140.15,140.12,45.0]
[1720881580653,11.49,140.15,140.11,45.0]
[1720881580879,11.49,140.15,140.12,1.42704438]
[1720881581083,11.49,140.16,140.12,1.42704438]
[1720881581264,11.49,140.15,140.12,1.42704438]
[1720881581466,11.49,140.16,140.12,1.42704438]
[1720881581984,1.42734208,140.19,140.12,12.91704438]
[1720881582171,11.49,140.17,140.13,45.0]
[1720881582366,11.49,140.15,140.11,45.0]
[1720881583474,11.49,140.15,140.12,1.42694969]
[1720881583683,11.49,140.16,140.12,1.42694969]
[1720881583980,11.49,140.16,140.11,56.49]
[1720881585475,1.42734208,140.18,140.12,1.42689122]
[1720881585677,11.49,140.16,140.12,1.42689122]
[1720881585881,11.49,140.16,140.11,56.49]
[1720881586584,11.49,140.15,140.11,45.0]
[1720881587669,11.49,140.16,140.11,56.49]
[1720881588082,6.42054208,140.19,140.11,63.1559]
[1720881588270,11.49,140.17,140.12,11.49]
[1720881588473,6.42054208,140.19,140.13,45.0]
[1720881588679,11.49,140.17,140.13,45.0]
[1720881590593,11.49,140.16,140.13,45.0]
[1720881590799,11.49,140.16,140.12,45.0]
[1720881591085,6.42054208,140.19,140.12,45.0]
[1720881591292,11.49,140.16,140.12,45.0]
[1720881593092,6.42054208,140.19,140.12,45.0]
[1720881593279,11.49,140.16,140.12,45.0]
[1720881594411,11.49,140.16,140.13,1.42692581]
[1720881594695,11.49,140.17,140.12,56.49]
[1720881594895,11.49,140.16,140.12,45.0]
[1720881595689,4.9933,140.19,140.13,1.42697862]
[1720881595893,11.49,140.16,140.13,1.42697862]
[1720881596897,11.49,140.14,140.12,45.0]
[1720881597973,11.49,140.14,140.09,15.3093]
[1720881598174,1.42734208,140.14,140.09,16.7365785]
[1720881598475,11.49,140.13,140.09,15.3093]
[1720881598786,11.49,140.12,140.09,15.3093]
[1720881599385,11.49,140.12,140.1,45.0]
[1720881601682,11.49,140.12,140.1,46.42732019]
[1720881601875,11.49,140.14,140.11,1.42732093]
[1720881602088,11.49,140.14,140.1,45.0]
[1720881602320,11.49,140.15,140.1,56.49]
[1720881602476,15.33474822,140.22,140.11,1.4271557]
[1720881602477,11.49,140.14,140.11,1.4271557]
[1720881602879,11.49,140.14,140.1,45.0]
[1720881603182,11.49,140.14,140.1,46.4271179]
[1720881603397,11.49,140.14,140.11,1.42724063]
[1720881603778,1.42734208,140.16,140.11,1.42724063]
[1720881604076,4.9939,140.17,140.11,1.42724063]
[1720881604283,11.49,140.14,140.11,1.42724063]
[1720881604483,11.49,140.15,140.11,1.42724063]
[1720881604978,11.49,140.13,140.1,45.0]
[1720881605184,11.49,140.13,140.11,1.42725479]
[1720881605399,1.42734208,140.15,140.11,1.42725479]
[1720881605586,11.49,140.14,140.11,1.42725479]
[1720881607595,11.49,140.13,140.1,45.0]
[1720881608412,11.49,140.12,140.09,15.3093]
[1720881608594,11.49,140.12,140.08,6.5537]
[1720881608595,4.9955,140.13,140.08,6.5537]
[1720881608789,11.49,140.1,140.06,15.953]
[1720881609006,1.42734208,140.12,140.06,15.953]
[1720881609007,11.49,140.09,140.06,15.953]
[1720881610421,11.49,140.09,140.07,45.0]
[1720881611210,4.9954,140.13,140.07,45.0]
[1720881611420,11.49,140.1,140.07,45.0]
[1720881612213,1.42734208,140.12,140.07,45.0]
[1720881612519,22.4399,140.15,140.07,45.0]
[1720881612520,11.49,140.11,140.07,45.0]
[1720881612696,1.42734208,140.14,140.07,45.0]
[1720881613017,11.49,140.12,140.07,56.49]
[1720881613495,1.42734208,140.14,140.07,56.49]
[1720881613699,11.49,140.12,140.07,56.49]
[1720881614316,11.49,140.12,140.08,1.42736292]
[1720881614694,1.42734208,140.14,140.08,1.42736292]
[1720881614994,11.49,140.12,140.08,1.42736292]
[1720881618916,11.49,140.12,140.07,45.0]
[1720881619105,11.49,140.12,140.07,56.49]
[1720881619415,11.49,140.12,140.07,45.0]
[1720881619621,4.9953,140.13,140.07,45.0]
[1720881619622,11.49,140.11,140.07,45.0]
[1720881623827,11.49,140.12,140.08,1.42740884]
[1720881624740,11.49,140.12,140.07,45.0]
[1720881625117,11.49,140.12,140.08,1.42737973]
[1720881627306,11.49,140.13,140.08,1.42737973]
[1720881628810,11.49,140.13,140.08,12.91737973]
[1720881629011,11.49,140.13,140.09,45.0]
[1720881629210,11.49,140.13,140.1,1.4273039]
[1720881629436,11.49,140.13,140.11,1.4273063]
[1720881630441,11.49,140.13,140.1,1.42730637]
[1720881630612,11.49,140.13,140.11,1.4273064]
[1720881630814,11.49,140.13,140.1,1.42730662]
[1720881631044,11.49,140.13,140.11,1.42730649]
[1720881631340,11.49,140.13,140.1,1.42730657]
[1720881631507,11.49,140.13,140.11,1.42730659]
[1720881632535,11.49,140.13,140.09,45.0]
[1720881632536,11.49,140.13,140.1,1.42727416]
[1720881632725,11.49,140.13,140.11,1.42727917]
[1720881632928,11.49,140.13,140.1,1.42727861]
[1720881633111,11.49,140.13,140.11,1.42727952]
[1720881633427,11.49,140.12,140.09,45.0]
[1720881633735,11.49,140.11,140.08,45.0]
[1720881633942,11.49,140.11,140.07,45.0]
[1720881634235,11.49,140.1,140.07,45.0]
[1720881634548,11.49,140.1,140.07,46.42757485]
[1720881634712,11.49,140.1,140.08,1.42757485]
[1720881635231,11.49,140.1,140.07,45.0]
[1720881636149,11.49,140.1,140.08,1.4275767]
[1720881636823,11.49,140.11,140.08,1.4275767]
[1720881637229,11.49,140.11,140.07,45.0]
[1720881637540,11.49,140.1,140.07,45.0]
[1720881637729,1.42734208,140.12,140.08,1.42757027]
[1720881637932,11.49,140.11,140.08,1.42757027]
[1720881638243,11.49,140.13,140.08,1.42740947]
[1720881638446,11.49,140.13,140.07,56.49]
[1720881638628,11.49,140.12,140.08,1.42729992]
[1720881640155,1.42734208,140.14,140.08,1.42729992]
[1720881640330,11.49,140.13,140.08,12.91729992]
[1720881640659,11.49,140.14,140.09,56.49]
[1720881640836,11.49,140.14,140.1,1.4271742]
[1720881641030,1.42734208,140.16,140.11,1.4271977]
[1720881641232,11.49,140.14,140.11,1.4271977]
[1720881641448,11.49,140.15,140.11,1.4271977]
[1720881641632,11.49,140.15,140.11,46.4271977]
[1720881642653,11.49,140.14,140.11,46.4271977]
[1720881642829,11.49,140.14,140.12,1.42714771]
[1720881643025,11.49,140.14,140.11,1.4271484]